Cogmind - Beta 16 @@@ ROGUE MODE // 2025.12.26 @ 20:47:36 Player: Legato Result: Destroyed by G-47 Trooper with Particle Gun Performance ------------- Evolutions (2) 1000 Regions Visited (4) 800 Robots Destroyed (22) 110 Value Destroyed (501) 501 Prototype IDs (2) 40 Alien Tech Used (0) 0 Bonus (90) 90 TOTAL SCORE: 2541 Bonus ------- Follower Combat Kills 90 Cogmind --------- Core Integrity 0/550 Matter 28/300 Energy 17/100 System Corruption 7% Temperature Cool (9) Movement Hovering (50) Location -8/Materials Parts ------- > --- POWER (1) -------- (None) > --- PROPULSION (4) --- Aerolev Unit > --- UTILITY (4) ------ Particle Charger > --- WEAPON (2) ------- (None) > --- INVENTORY (5) ---- Ion Engine Light Assault Rifle Rocket Launcher Peak State ------------ > --- POWER ------------ Improved Ion Engine > --- PROPULSION ------- Armored Treads Makeshift Leg Cesium-ion Thruster > --- UTILITY ---------- Disposable Heat Sink Improved Terrain Scanner Power Shielding > --- WEAPON ----------- Flak Cannon Flak Cannon > --- INVENTORY -------- Ion Engine Light Assault Rifle Light Assault Rifle Rocket Launcher [Rating: 24] Favorites ----------- Power Deuterium Engine Engine Deuterium Engine Propulsion Aluminum Leg Treads Armored Treads Leg Aluminum Leg Hover Unit Aerolev Unit Flight Unit Cesium-ion Thruster Utility Small Storage Unit Device Disposable Heat Sink Storage Small Storage Unit Processor Improved Terrain Scan Processor Protection Power Shielding Weapon Light Assault Rifle Energy Gun Advanced Beam Rifle Ballistic Gun Light Assault Rifle Ballistic Cannon Light Cannon Launcher Rocket Launcher Build | -11 -10 -10 -9 -8 ------- Run | Yrd Mat Min Mat Mat Slots Evolved 4 | . . . 2 2 Power . | . . . . . Propulsion 2 | . . . 2 . Utility 2 | . . . . 2 Weapon . | . . . . . Parts Attached 42 | 6 2 2 8 24 Power 5 | 1 . 1 . 3 Engine 5 | 1 . 1 . 3 Core . | . . . . . Reactor . | . . . . . Propulsion 16 | 2 . . 7 7 Treads 2 | . . . . 2 Leg 12 | 2 . . 7 3 Wheel . | . . . . . Hover 1 | . . . . 1 Flight 1 | . . . . 1 Utility 11 | 1 1 1 . 8 Device 5 | . . . . 5 Storage 3 | 1 1 . . 1 Processor 2 | . . 1 . 1 Hackware . | . . . . . Protection 1 | . . . . 1 Artifact . | . . . . . Weapon 10 | 2 1 . 1 6 Energy Gun 1 | . . . . 1 Energy Cannon . | . . . . . Ballistic Gun 5 | 2 . . 1 2 Ballistic Cannon 3 | . 1 . . 2 Launcher 1 | . . . . 1 Special Weapon . | . . . . . Impact Weapon . | . . . . . Slashing Weapon . | . . . . . Piercing Weapon . | . . . . . Special Melee Weapon . | . . . . . Unidentified Prototypes 2 | . . . . 2 Corrupted Parts 1 | . . . . 1 System Corruption 7 | . . . . 7 Parts Lost 8 | . . . . 8 Power 2 | . . . . 2 Propulsion 5 | . . . . 5 Utility . | . . . . . Weapon 1 | . . . . 1 Highest Loss Streak 6 | . . . . 6 To Critical Strikes . | . . . . . Average Backups 5 | 2 5 7 7 4 Power 1 | . 1 1 2 1 Propulsion 1 | 1 2 3 1 . Utility . | . . . . . Weapon 2 | . 2 3 3 2 Tool/Special . | . . . . . Unused Backups 3 | . . 2 1 . Power . | . . . . . Propulsion 2 | . . 2 . . Utility . | . . . . . Weapon 1 | . . . 1 . Tool/Special . | . . . . . Average Slot Usage (%) 85 | . 98 100 99 54 Engine 10 | . 14 14 11 6 Treads 1 | . . . . 4 Leg 28 | . 28 28 43 12 Flight 1 | . . . . 4 Device 1 | . . . . 4 Storage 12 | . 26 17 11 3 Processor 6 | . . 10 11 3 Protection 1 | . . . . 3 Ballistic Gun 11 | . 17 14 15 3 Ballistic Cannon 7 | . 10 14 6 5 Peak Build Rating 24 | 6 7 11 13 24 Average Rating 11 | 4 6 10 12 13 On Entrance 7 | . 6 7 11 13 Avg Prop Armor Cover (%) 13 | . . . . 13 Naked Turns 37 | . . . . 37 Heaviest Build 22 | 10 16 18 18 22 Greatest Support 40 | 20 20 20 40 40 Greatest Overweight (x) 4 | . . . . 4 Average Overweight (x) . | . . . . . Largest Inventory Capacity 10 | 8 8 8 8 10 Average Capacity 7 | 7 8 8 8 6 Most Carried 8 | 4 7 8 8 7 Average Carried 5 | 2 5 7 7 4 Final Capacity 8 | 8 8 8 8 5 Final Carried 8 | 4 7 8 7 3 Class Distribution -------------------- 90% | Mutant 9% | Scavenger-Mutant Dominant Class ---------------- Mutant | -10/Materials Mutant | -10/Mines Mutant | -9/Materials Mutant | -8/Materials Resources | -11 -10 -10 -9 -8 ----------- Run | Yrd Mat Min Mat Mat Matter Collected 658 | 207 51 50 251 99 Remotely . | . . . . . Salvage Created 469 | . 40 . 266 163 Parts 38 | . 3 . 22 13 Haulers Intercepted 1 | . . . . 1 Recyclers Shooed 1 | 1 . . . . Parts Field Recycled . | . . . . . Retrieved Matter . | . . . . . Parts Self-Destructed . | . . . . . Prevented . | . . . . . Parts Restored . | . . . . . Kills | -11 -10 -10 -9 -8 ------- Run | Yrd Mat Min Mat Mat Combat Hostiles Destroyed 18 | . 1 . 11 6 Melee 1 | . . . . 1 Guns 7 | . . . 6 1 Cannons 7 | . 1 . 5 1 AOE 3 | . . . . 3 Classes Destroyed 6 | . 2 . 1 3 Builder 2 | . . . . 2 Hauler 1 | . . . . 1 Watcher 1 | . 1 . . . Swarmer 9 | . . . 6 3 Grunt 8 | . 1 . 5 2 Hunter 1 | . . . . 1 Best Kill Streak 6 | . 1 . 3 6 Combat Bots Only 4 | . 1 . 3 4 Max Kills in Single Turn 2 | . 1 . 1 2 Gunslinging . | . . . . . Exploded 2 | . . . . 2 Melee 1 | . . . . 1 Uniques/NPCs Destroyed . | . . . . . Combat | -11 -10 -10 -9 -8 -------- Run | Yrd Mat Min Mat Mat Hostile Shots Fired 269 | . 11 . 90 168 Missed 77 | . 6 . 22 49 Hits 192 | . 5 . 68 119 Projectile 192 | . 5 . 68 119 Critical Strikes 4 | . . . . 4 Damage Taken 2550 | . 48 . 639 1863 Core 709 | . 19 . 135 555 Absorbed by Shields . | . . . . . Redirected to Shielding 29 | . . . . 29 Core Remaining (%) 86 | 100 . 92 66 . Volleys Fired 75 | . 9 . 47 19 Largest 2 | . 2 . 2 2 Hottest 74 | . 50 . 50 74 Shots Fired 146 | . 18 . 94 34 Gun 90 | . 9 . 68 13 Cannon 50 | . 9 . 26 15 Launcher 6 | . . . . 6 Special . | . . . . . Kinetic 140 | . 18 . 94 28 Thermal . | . . . . . Explosive 6 | . . . . 6 Electromagnetic . | . . . . . Robot Hit Streak 14 | . 2 . 14 7 Robot Miss Streak 12 | . 3 . 8 12 Penetration Max . | . . . . . Secondary Targets . | . . . . . Shots Hit Robots 84 | . 8 . 58 18 Core Hits 48 | 1 5 . 17 25 Critical Kills . | . . . . . Critical Parts Destroyed . | . . . . . Critical Strikes 1 | . 1 . . . Blast 1 | . 1 . . . Melee Attacks . | . . . . . Impact . | . . . . . Slashing . | . . . . . Piercing . | . . . . . Sneak Attacks . | . . . . . Combat Hostiles . | . . . . . Follow-up Attacks . | . . . . . Damage Inflicted 1662 | 13 140 . 648 861 Guns 434 | . 30 . 348 56 Cannons 586 | . 93 . 297 196 Explosions 576 | . . . . 576 Melee . | . . . . . Ramming 66 | 13 17 . 3 33 Kinetic 1020 | . 123 . 645 252 Thermal . | . . . . . Explosive 576 | . . . . 576 Electromagnetic . | . . . . . Impact . | . . . . . Slashing . | . . . . . Piercing . | . . . . . Highest Corruption 7 | . . . . 7 Average Corruption 7 | . . . . 7 Corruption Purged . | . . . . . Corruption Blocked . | . . . . . Effects 10 | . . . . 10 Message Errors 1 | . . . . 1 Matter Fused 3 | . . . . 3 Heat Flow Errors 3 | . . . . 3 Data Loss (minor) 2 | . . . . 2 Misfires 1 | . . . . 1 Overload Shots . | . . . . . Overflow Damage 6 | . . . 4 2 Projectiles 4 | . . . 4 . Explosions 2 | . . . . 2 Melee . | . . . . . Knockbacks 20 | . 1 . 6 13 Impact . | . . . . . Kinetic 19 | . 1 . 5 13 Secondary 1 | . . . 1 . Self-Inflicted Damage 34 | . . . . 34 Shots 1 | . . . . 1 Rammed 5 | . . . . 5 Targets Rammed 22 | 9 4 . 1 8 Kicked 16 | 9 4 . 1 2 Crushed 1 | . . . . 1 Highest Temperature 234 | . 19 . 24 234 Average Temperature 25 | . 8 . 7 56 Received Heat Transfer 1083 | . 36 . 183 864 Effects 1 | . . . . 1 Energy Bleed 1 | . . . . 1 Siege Activations . | . . . . . Martial Activations . | . . . . . Shielding Activations . | . . . . . Robots Disrupted . | . . . . . Combat Hostiles . | . . . . . Robots Corrupted . | . . . . . Combat Hostiles . | . . . . . Parts Fried . | . . . . . Impact Corruptions . | . . . . . Robots Melted . | . . . . . Combat Hostiles . | . . . . . Parts Melted . | . . . . . Heat Transferred . | . . . . . Parts Sabotaged . | . . . . . Parts Stolen . | . . . . . Parts Stripped . | . . . . . Power Chain Reactions . | . . . . . Alert | -11 -10 -10 -9 -8 ------- Run | Yrd Mat Min Mat Mat Maximum Alert Level . | . . . . . Low Security (%) 100 | 100 100 100 100 100 Level 1 . | . . . . . Level 2 . | . . . . . Level 3 . | . . . . . Level 4 . | . . . . . Level 5 . | . . . . . High Security . | . . . . . Max Security . | . . . . . Peak Influence 195 | . 25 56 188 195 Initial 68 | . . . 5 68 Average 78 | . 5 22 92 146 Influence Increases 831 | . 48 56 358 369 Destroy 0b10 Robot/C 440 | . 20 40 260 120 Destroy 0b10 Robot/NC 20 | . 5 . . 15 Destroy Leader 104 | . 2 10 60 32 Allied During Kill 19 | . . 6 13 . Successful Hack 16 | . 6 . 10 . Disable Machine 45 | . . . . 45 Destroy Structure 52 | . . . . 52 Lose Combat Pursuer 135 | . 15 . 15 105 Influence Decreases 674 | . 48 40 212 374 Entered New Map 105 | . . . 11 94 Time Decay 449 | . 48 40 181 180 Lost Part 80 | . . . . 80 Lost Ally 40 | . . . 20 20 Squads Dispatched 11 | . 3 1 3 4 Investigation 4 | . 1 1 1 1 Extermination . | . . . . . Reinforcement 7 | . 2 . 2 3 Assault . | . . . . . Garrison . | . . . . . Intercept . | . . . . . Searches Triggered . | . . . . . Construction Impeded 1 | . . . . 1 Haulers Reinforced . | . . . . . Active Scanning Responses . | . . . . . Cargo Convoy Interrupts . | . . . . . Stealth | -11 -10 -10 -9 -8 --------- Run | Yrd Mat Min Mat Mat Distress Signals 2 | . . . . 2 Communications Jammed . | . . . . . Distress Signals . | . . . . . Times Spotted 58 | . 9 . 20 29 Peak Tracking Total 12 | . 4 . 4 12 Tactical Retreats 5 | . 1 . 1 3 Traps | -11 -10 -10 -9 -8 ------- Run | Yrd Mat Min Mat Mat Traps Triggered 2 | . 1 . . 1 Indirectly . | . . . . . Trap Hack Attempts . | . . . . . Triggered . | . . . . . Disarmed . | . . . . . Reprogrammed . | . . . . . Reused . | . . . . . Traps Extracted . | . . . . . Installed . | . . . . . Triggered . | . . . . . Machines | -11 -10 -10 -9 -8 ---------- Run | Yrd Mat Min Mat Mat Machines Disabled 3 | . . . . 3 Max in Single Turn 2 | . . . . 2 Machines Repaired . | . . . . . Machines Dismantled . | . . . . . Machines Sabotaged . | . . . . . Overloaded Fab Kills . | . . . . . Hacking | -11 -10 -10 -9 -8 --------- Run | Yrd Mat Min Mat Mat Machines Accessed 6 | . 2 1 3 . Terminals 4 | . 2 . 2 . Fabricators . | . . . . . Repair Stations . | . . . . . Recycling Units 1 | . . . 1 . Scanalyzers . | . . . . . Garrison Access . | . . . . . Total Hacks 10 | . 3 1 6 . Successful 7 | . 1 1 5 . Failed 3 | . 2 . 1 . Catastrophic . | . . . . . Database Lockouts . | . . . . . Manual 4 | . 3 . 1 . Terminals 7 | . 3 . 4 . Fabricators . | . . . . . Repair Stations . | . . . . . Recycling Units 2 | . . . 2 . Scanalyzers . | . . . . . Garrison Access . | . . . . . Terminal Hacks 3 | . . 1 2 . Open Door 1 | . . 1 . . Branch Access Points 1 | . . . 1 . Maintenance Status 1 | . . . 1 . Fabricator Hacks . | . . . . . Repair Station Hacks . | . . . . . Recycling Unit Hacks 2 | . . . 2 . Recycle Component 1 | . . . 1 . Process 1 | . . . 1 . Scanalyzer . | . . . . . Garrison Access Hacks . | . . . . . Unauthorized Hacks 2 | . 1 . 1 . Terminals 2 | . 1 . 1 . Assimilate 2 | . 1 . 1 . Fabricators . | . . . . . Repair Stations . | . . . . . Recycling Units . | . . . . . Scanalyzers . | . . . . . Garrison Access . | . . . . . Data Cores Recovered . | . . . . . Used . | . . . . . Hacking Detections 3 | . 1 . 2 . Full Trace Events 1 | . . . 1 . Feedback Events . | . . . . . Feedback Blocked . | . . . . . Robot Schematics Acquired . | . . . . . Robots Built . | . . . . . Authchips . | . . . . . Time . | . . . . . Total Robot Build Rating . | . . . . . Part Schematics Acquired . | . . . . . Parts Built . | . . . . . Authchips . | . . . . . Time . | . . . . . Total Part Build Rating . | . . . . . Part Studies Acquired . | . . . . . Parts Repaired . | . . . . . Time . | . . . . . Parts Recycled 1 | . . . 1 . Recycled Matter 165 | . . . 165 . Retrieved Matter . | . . . . . Retrieved Components . | . . . . . Parts Scanalyzed . | . . . . . Part Schematics Acquired . | . . . . . Parts Damaged . | . . . . . Bothacking | -11 -10 -10 -9 -8 ------------ Run | Yrd Mat Min Mat Mat Used RIF Installer . | . . . . . Robots Hacked . | . . . . . Non-combat . | . . . . . Combat . | . . . . . Robot Hacks Applied . | . . . . . Relay Couplers Released . | . . . . . Fabnet Peak Effective % . | . . . . . Robots Rewired . | . . . . . Allies Hacked . | . . . . . Hacks Repelled . | . . . . . Allies | -11 -10 -10 -9 -8 -------- Run | Yrd Mat Min Mat Mat Total Allies 2 | . . 2 . . Largest Group 2 | . . 2 2 1 Highest-Rated Group 53 | . . 53 53 10 Highest-Rated Ally 31 | . . 31 31 10 Total Orders . | . . . . . Ally Attacks 21 | . . 4 17 . Total Damage 211 | . . 42 169 . Kills 4 | . . 2 2 . Allies Corrupted . | . . . . . Allies Melted . | . . . . . Intel | -11 -10 -10 -9 -8 ------- Run | Yrd Mat Min Mat Mat Active Infowar (turns) 59 | . . . . 59 Terrain 59 | . . . . 59 Robot Analysis Total . | . . . . . Derelict Logs Recovered . | . . . . . Drone Launches . | . . . . . Drone Recoveries . | . . . . . Exploration | -11 -10 -10 -9 -8 ------------- Run | Yrd Mat Min Mat Mat Turns Passed 1246 | 83 220 147 424 372 Spaces Moved 772 | 51 145 102 210 264 Core 92 | 2 . . . 90 Treads 73 | . . . . 73 Legs 546 | 49 145 102 210 40 Wheels . | . . . . . Hover . | . . . . . Flight 61 | . . . . 61 Fastest Speed 35 | 50 120 120 120 35 Average Speed 111 | 117 120 120 120 95 Slowest Speed 250 | 120 120 120 120 250 Overloaded Moves . | . . . . . Propulsion Burnouts . | . . . . . Robots Hopped . | . . . . . Potential Cave-ins . | . . . . . Cave-ins Triggered . | . . . . . Exploration Rate (%) 25 | 5 36 28 27 31 Regions Visited 4 Branch Regions 1 Pre-discovered Areas . | . . . . . Known Exits Taken . | . . . . . Unknown Exits Taken 4 | 1 1 1 1 . Scrap Searched . | . . . . . Spaces Dug . | . . . . . Terrain Destroyed 51 | . . . . 51 Melee . | . . . . . Projectile . | . . . . . AOE 51 | . . . . 51 Terrain Rammed . | . . . . . Walls Destroyed . | . . . . . Machines Disabled . | . . . . . Actions | -11 -10 -10 -9 -8 --------- Run | Yrd Mat Min Mat Mat Total 1015 | 70 173 129 302 341 Wait 75 | . 10 17 25 23 Move 768 | 50 144 101 209 264 Hop . | . . . . . Pick Up 16 | 5 4 4 3 . Fast Attach 32 | 5 . 2 7 18 Attach 8 | 1 1 . 2 4 Detach . | . . . . . Swap 3 | . 1 . . 2 Drop 16 | . . 5 8 3 Fire 75 | . 9 . 47 19 Melee . | . . . . . Ram 4 | . . . . 4 Kick 16 | 9 4 . 1 2 Crush 2 | . . . . 2 Escape Stasis . | . . . . . Rewire . | . . . . . Trap . | . . . . . Miscellaneous . | . . . . . Route ------- -11/Scrapyard -10/Materials -10/Mines -9/Materials (discovered 4 exits: [*Mat] / Min x2 / Sto) -8/Materials History --------- Turn | Location | Event 8 | -11/Scrapyard | Discovered new exit (range 16) 84 | -11/Scrapyard | Entered Materials 237 | -10/Materials | Discovered new exit (range 6) 304 | -10/Materials | Entered Mines 308 | -10/Mines | Build established: Mutant 329 | -10/Mines | Met a Derelict shopkeep closing up shop 403 | -10/Mines | Discovered new exit (range 5) 451 | -10/Mines | Entered Materials 451 | -9/Materials | Accompanied by 2 allies 451 | -9/Materials | Evolved 2 slots: Propulsion x2 456 | -9/Materials | Led the pair of lost Derelicts to an unsafe place 770 | -9/Materials | Discovered new exit (range 16) 796 | -9/Materials | Identified exit to Mines 796 | -9/Materials | Identified exit to Storage 875 | -9/Materials | Entered another Materials area 875 | -8/Materials | Accompanied by 1 ally 875 | -8/Materials | Evolved 2 slots: Utility x2 958 | -8/Materials | Released all parts (6) 962 | -8/Materials | Core integrity fell below 50% 982 | -8/Materials | Lost 6 parts (1p4n1w) 1156 | -8/Materials | Core integrity fell below 20% 1156 | -8/Materials | Released all parts (7) 1241 | -8/Materials | Released all parts (5) 1247 | -8/Materials | Destroyed by G-47 Trooper with Particle Gun Last Messages --------------- Slammed into A-02 Transporter. A-02 Transporter destroyed. Acquired 56 matter. Dropped Cryofiber Web. Acquired Prototype Energy Gun. Identified Adv. Beam Rifle. Acquired Med. Storage Unit. System corrupted: Heat flow error (+266). Acquired Lgt. Treads. A%2%U7PYJKDF%%KT8= 7<8 K-01 Serf collects debris. Critical hit (Burn: +37). Released Med. Storage Unit. Released Cryofiber Web. Released Adv. Beam Rifle. Released Lgt. Treads. Released Lgt. Assault Rifle. Acquired Particle Charger. Acquired Prototype Hover Unit. Identified Aerolev Unit. Map ----- +----------------------------------------------------+ | ?????????????# # ???????? | | ?????????????# [ """# ???????? | | ?????????????# """# ?????"?? | | ?????????????# """# #??????? | | ?????????????# # ######## | | ????????????## """# # ] | | ?????????????# """# # [ ] | | ?????????????# """# # | | ?????????????# # # | | ????????????######/#### #+####+# | | ????????????# | | ????????????# !% | | ????????????# !!! | | ????????????##### !!! ###### | | ????????????????# !! #????? | | ????????????????# ###### | | ??????????????? # | | ????????????????# | | ????????????????+ """ | | ????????????????# """ | | ????????????????# """ | | ????????????????# """ ] # | | ????????????????# # | | ?#########??????# # | | ?# #????? # | | ?# @ #????? # | | ?# """ #????? " ######## / | | ?# """ #????? #???????# # | | ?# """ #?????"" ????????# # | | ?# #???? ????????# # | | ?######;##??? ????????# # | | ?????# #?# """ #???????# # | | ?????#[!#?# """ #???????# # | | ?????#[!#?# """ #???????# # | | ?????# g### #???????# # | | ?????# #???????# # | | ?????# """ #???????# # | | ?????# """ #???????# # | | ?????##g """ #???????# # | | ??????# #### #???????# # | | ??????#g#??# #???????# # | | ????###/#### "" #???????# # | | ????# # "T #???????# | | ????# # "" !######### | | ????# # [[![[* | | ????# # ############/ | | ????# + ######????????# | | ????# # #?????????????# | | ????######## #?????????????# ! | | ???????????# #?????????????# | +----------------------------------------------------+ Best States ------------- Heat Dissipation 31 Coolant Potential 50 Energy Generation 14 Energy Capacity 275 Matter Stores 300 Matter Capacity 500 Sight Range 16 Terrain Scan Range 16 Terrain Scan Density 110 Base Temperature (-) 100 Power Shielding 33 Evasion (%) 63 Melee Accuracy 5 Recoil Reduction 1 Item Schematics ----------------- None Robot Schematics ------------------ None Fabricated ------------ Nothing Repaired ---------- Nothing Studied --------- None Alien Tech Used ----------------- None Achievements -------------- True Hacker Challenges ------------ None Game ------ Seed RelayComponentHumpback Manual? 0 Play Time 00:42:19 Cumulative 7.3 hours Start 2025.12.26 @ 18:06:30 End 2025.12.26 @ 20:47:36 Sessions 8 Manual Loads 0 Difficulty Rogue Special Mode None Game No. 12 Rogue 12 Adventurer 0 Explorer 0 Win Type - Total 0 Types 0/0/0/0/0/0/0/0/0/0 Lore% 5 Gallery% 14 Achievement% 13 Wizard Run 0 Options --------- Layout 1 ASCII 0 Keyboard 0 Movement Vi Keybinds 1 Fullscreen 1 Font 24/Proggy Map View 50x35 Zoom Use 0% Tactical HUD 0 Map Filters NONE Filters NONE Steam 1 RUN: 002e0371-aadf-4eee-abeb-e906b50c64e1